Cogmind - Beta 13 @@@ ROGUE MODE // 2024.06.01 @ 04:09:50 Player: Comet Result: Destroyed by G-47 Trooper with Particle Gun Performance ------------- Evolutions (0) 0 Regions Visited (3) 600 Robots Destroyed (28) 140 Value Destroyed (468) 468 Prototype IDs (0) 0 Alien Tech Used (0) 0 Bonus (30) 30 TOTAL SCORE: 1238 Bonus ------- Follower Combat Kills 30 Cogmind --------- Core Integrity 0/250 Matter 300/300 Energy 123/125 System Corruption 7% Temperature Cool (9) Movement Rolling (110) Ox2 Location -10/Subcaves Parts ------- > --- POWER (1) -------- Light Ion Engine > --- PROPULSION (2) --- Wheel Wheel > --- UTILITY (2) ------ High-capacity Storage Unit Signal Interpreter > --- WEAPON (2) ------- (None) > --- INVENTORY (20) --- Light Ion Engine Light Ion Engine Light Ion Engine Light Treads Heat Sink Improved Heat Sink Huge Storage Unit Sensor Array Experimental Sensor Array Signal Interpreter Targeting Computer Core Shielding Improved Light Armor Plating Shock Absorption System Hacking Suite Hacking Suite Tractor Beam Mining Laser Hammer Peak State ------------ > --- POWER ------------ Light Ion Engine > --- PROPULSION ------- Light Treads Light Treads > --- UTILITY ---------- High-capacity Storage Unit Signal Interpreter > --- WEAPON ----------- Light Cannon Light Cannon > --- INVENTORY -------- Light Ion Engine Light Treads Heat Sink Improved Heat Sink Huge Storage Unit Sensor Array Experimental Sensor Array Signal Interpreter Signal Interpreter Targeting Computer Core Shielding Hacking Suite Hacking Suite Tractor Beam Mining Laser Hammer [Rating: 10] Favorites ----------- Power Light Ion Engine Engine Light Ion Engine Propulsion Light Treads Treads Light Treads Wheel Wheel Utility High-capacity Storage Unit Device Sensor Array Storage High-capacity Storage Unit Processor Signal Interpreter Weapon Light Cannon Energy Gun Small Laser Ballistic Gun Assault Rifle Ballistic Cannon Light Cannon Build | -11 -10 -10 -10 ------- Run | Yrd Mat Min Sub Slots Evolved . | . . . . Power . | . . . . Propulsion . | . . . . Utility . | . . . . Weapon . | . . . . Parts Attached 23 | 7 10 6 . Power 4 | 1 1 2 . Engine 4 | 1 1 2 . Core . | . . . . Reactor . | . . . . Propulsion 5 | 2 1 2 . Treads 3 | 2 1 . . Leg . | . . . . Wheel 2 | . . 2 . Hover . | . . . . Flight . | . . . . Utility 8 | 1 5 2 . Device 2 | . 1 1 . Storage 4 | 1 3 . . Processor 2 | . 1 1 . Hackware . | . . . . Protection . | . . . . Artifact . | . . . . Weapon 6 | 3 3 . . Energy Gun 2 | 2 . . . Energy Cannon . | . . . . Ballistic Gun 1 | 1 . . . Ballistic Cannon 3 | . 3 . . Launcher . | . . . . Special Weapon . | . . . . Impact Weapon . | . . . . Slashing Weapon . | . . . . Piercing Weapon . | . . . . Special Melee Weapon . | . . . . Unidentified Prototypes . | . . . . Parts Lost 7 | . 3 2 2 Power 1 | . 1 . . Propulsion 2 | . 1 1 . Utility 2 | . 1 1 . Weapon 2 | . . . 2 Highest Loss Streak 2 | . 2 1 2 To Critical Strikes . | . . . . Average Slot Usage (%) 93 | . 95 94 76 Engine 14 | . 14 14 14 Treads 20 | . 27 10 . Wheel 7 | . . 17 28 Device 5 | . 9 . . Storage 14 | . 14 14 14 Processor 3 | . . 9 14 Energy Gun 1 | . 2 . . Ballistic Cannon 25 | . 25 28 4 Naked Turns . | . . . . Heaviest Build 50 | 10 50 49 49 Greatest Support 40 | 40 40 40 20 Greatest Overweight (x) 4 | . 1 4 2 Average Overweight (x) 1 | . . 1 2 Largest Inventory Capacity 20 | 8 20 20 20 Average Capacity 18 | 6 17 20 20 Most Carried 19 | . 16 19 19 Average Carried 12 | . 9 17 19 Final Capacity 20 | 8 20 20 20 Final Carried 19 | . 15 19 19 Class Distribution -------------------- 100% | Mutant Dominant Class ---------------- Mutant | -10/Materials Mutant | -10/Mines Mutant | -10/Subcaves Resources | -11 -10 -10 -10 ----------- Run | Yrd Mat Min Sub Matter Collected 1339 | 270 697 372 . Remotely . | . . . . Salvage Created 713 | . 584 129 . Parts 41 | . 41 . . Haulers Intercepted 1 | . 1 . . Recyclers Shooed 1 | . 1 . . Parts Field Recycled . | . . . . Retrieved Matter . | . . . . Parts Self-Destructed . | . . . . Prevented . | . . . . Kills | -11 -10 -10 -10 ------- Run | Yrd Mat Min Sub Combat Hostiles Destroyed 28 | . 14 14 . Guns 1 | . 1 . . Cannons 27 | . 13 14 . Classes Destroyed 9 | . 8 1 . Worker 3 | . 2 1 . Builder 2 | . 1 1 . Hauler 1 | . 1 . . Recycler 3 | . 3 . . Operator 2 | . 2 . . Watcher 3 | . 3 . . Swarmer 6 | . 6 . . Grunt 8 | . 8 . . Assembled 14 | . . 14 . Best Kill Streak 10 | . 4 10 . Combat Bots Only 5 | . 2 5 . Max Kills in Single Turn 2 | . 2 2 . Gunslinging . | . . . . Exploded . | . . . . Melee . | . . . . Uniques/NPCs Destroyed . | . . . . Combat | -11 -10 -10 -10 -------- Run | Yrd Mat Min Sub Hostile Shots Fired 148 | . 100 43 5 Missed 37 | . 30 6 1 Damage Taken 1290 | . 662 545 83 Core 262 | . 132 113 17 Absorbed by Shields . | . . . . Regen/Repaired (Parts) 113 | . 113 . . Core Remaining (%) 100 | 100 . . . Volleys Fired 108 | . 73 35 . Largest 2 | . 2 2 . Hottest 80 | . 80 70 . Shots Fired 220 | . 148 72 . Gun 8 | . 8 . . Cannon 212 | . 140 72 . Launcher . | . . . . Special . | . . . . Kinetic 212 | . 140 72 . Thermal 8 | . 8 . . Explosive . | . . . . Electromagnetic . | . . . . Robot Hit Streak 9 | . 9 5 . Robot Miss Streak 6 | . 6 5 . Penetration Max . | . . . . Secondary Targets . | . . . . Shots Hit Robots 106 | . 71 35 . Core Hits 49 | . 28 21 . Critical Kills . | . . . . Critical Parts Destroyed . | . . . . Critical Strikes 4 | . 3 1 . Blast 4 | . 3 1 . Melee Attacks . | . . . . Impact . | . . . . Slashing . | . . . . Piercing . | . . . . Sneak Attacks . | . . . . Combat Hostiles . | . . . . Follow-up Attacks . | . . . . Damage Inflicted 1911 | . 1263 648 . Guns 56 | . 56 . . Cannons 1852 | . 1204 648 . Explosions . | . . . . Melee . | . . . . Ramming 3 | . 3 . . Kinetic 1852 | . 1204 648 . Thermal 56 | . 56 . . Explosive . | . . . . Electromagnetic . | . . . . Impact . | . . . . Slashing . | . . . . Piercing . | . . . . Highest Corruption 7 | . 2 7 7 Average Corruption 4 | . 2 5 7 Corruption Purged . | . . . . Corruption Blocked . | . . . . Effects 52 | . 20 27 5 Message Errors 9 | . 3 5 1 Matter Fused 11 | . 7 4 . Heat Flow Errors 7 | . 3 3 1 Energy Discharges 8 | . 2 5 1 Data Loss (minor) 9 | . 1 6 2 Data Loss (major) 4 | . 2 2 . Misfires 4 | . 2 2 . Overload Shots . | . . . . Overflow Damage 54 | . 19 35 . Projectiles 54 | . 19 35 . Explosions . | . . . . Melee . | . . . . Knockbacks 28 | . 17 11 . Impact . | . . . . Kinetic 24 | . 14 10 . Secondary 4 | . 3 1 . Self-Inflicted Damage . | . . . . Shots . | . . . . Rammed 1 | . 1 . . Targets Rammed 1 | . 1 . . Kicked . | . . . . Crushed . | . . . . Highest Temperature 254 | . 254 167 115 Average Temperature 42 | . 38 49 75 Received Heat Transfer 379 | . 210 160 9 Siege Activations . | . . . . Robots Corrupted . | . . . . Combat Hostiles . | . . . . Parts Fried . | . . . . Impact Corruptions . | . . . . Robots Melted . | . . . . Combat Hostiles . | . . . . Parts Melted . | . . . . Heat Transferred 125 | . 125 . . Parts Sabotaged . | . . . . Parts Stolen . | . . . . Parts Stripped . | . . . . Power Chain Reactions . | . . . . Alert | -11 -10 -10 -10 ------- Run | Yrd Mat Min Sub Peak Influence 185 | . 185 21 . Initial 21 | . . 21 . Average 48 | . 72 9 . Maximum Alert Level . | . . . . Low Security (%) 100 | 100 100 100 . Level 1 . | . . . . Level 2 . | . . . . Level 3 . | . . . . Level 4 . | . . . . Level 5 . | . . . . High Security . | . . . . Max Security . | . . . . Squads Dispatched 3 | . 3 . . Investigation 1 | . 1 . . Extermination . | . . . . Reinforcement 2 | . 2 . . Assault . | . . . . Garrison . | . . . . Intercept . | . . . . Searches Triggered . | . . . . Construction Impeded . | . . . . Haulers Reinforced . | . . . . Active Scanning Responses . | . . . . Cargo Convoy Interrupts . | . . . . Stealth | -11 -10 -10 -10 --------- Run | Yrd Mat Min Sub Distress Signals 3 | . 2 1 . Communications Jammed . | . . . . Distress Signals . | . . . . Times Spotted 51 | . 28 19 4 Peak Tracking Total 5 | . 4 5 1 Tactical Retreats 4 | . 1 2 1 Traps | -11 -10 -10 -10 ------- Run | Yrd Mat Min Sub Traps Triggered 2 | . 2 . . Indirectly . | . . . . Trap Hack Attempts . | . . . . Triggered . | . . . . Disarmed . | . . . . Reprogrammed . | . . . . Reused . | . . . . Traps Extracted . | . . . . Installed . | . . . . Triggered . | . . . . Machines | -11 -10 -10 -10 ---------- Run | Yrd Mat Min Sub Machines Disabled 3 | . 3 . . Max in Single Turn 1 | . 1 . . Machines Repaired . | . . . . Machines Dismantled . | . . . . Machines Sabotaged . | . . . . Overloaded Fab Kills . | . . . . Hacking | -11 -10 -10 -10 --------- Run | Yrd Mat Min Sub Machines Accessed 4 | . 4 . . Terminals 1 | . 1 . . Fabricators . | . . . . Repair Stations 1 | . 1 . . Recycling Units 2 | . 2 . . Scanalyzers . | . . . . Garrison Access . | . . . . Total Hacks 7 | . 7 . . Successful 5 | . 5 . . Failed 2 | . 2 . . Catastrophic . | . . . . Database Lockouts . | . . . . Manual 2 | . 2 . . Terminals 1 | . 1 . . Fabricators . | . . . . Repair Stations 3 | . 3 . . Recycling Units 3 | . 3 . . Scanalyzers . | . . . . Garrison Access . | . . . . Terminal Hacks 1 | . 1 . . Part Schematic 1 | . 1 . . Fabricator Hacks . | . . . . Repair Station Hacks 2 | . 2 . . Scan Component 1 | . 1 . . Repair 1 | . 1 . . Recycling Unit Hacks 2 | . 2 . . Report Inventory 2 | . 2 . . Scanalyzer . | . . . . Garrison Access Hacks . | . . . . Unauthorized Hacks . | . . . . Terminals . | . . . . Fabricators . | . . . . Repair Stations . | . . . . Recycling Units . | . . . . Scanalyzers . | . . . . Garrison Access . | . . . . Data Cores Recovered . | . . . . Used . | . . . . Hacking Detections 3 | . 3 . . Full Trace Events . | . . . . Feedback Events . | . . . . Feedback Blocked . | . . . . Robot Schematics Acquired . | . . . . Robots Built . | . . . . Authchips . | . . . . Time . | . . . . Total Robot Build Rating . | . . . . Part Schematics Acquired 1 | . 1 . . Parts Built . | . . . . Authchips . | . . . . Time . | . . . . Total Part Build Rating . | . . . . Parts Repaired 1 | . 1 . . Time 26 | . 26 . . Parts Recycled . | . . . . Recycled Matter . | . . . . Retrieved Matter . | . . . . Retrieved Components . | . . . . Parts Scanalyzed . | . . . . Part Schematics Acquired . | . . . . Parts Damaged . | . . . . Bothacking | -11 -10 -10 -10 ------------ Run | Yrd Mat Min Sub Used RIF Installer . | . . . . Robots Hacked . | . . . . Non-combat . | . . . . Combat . | . . . . Robot Hacks Applied . | . . . . Relay Couplers Released . | . . . . Fabnet Peak Effective % . | . . . . Robots Rewired . | . . . . Allies Hacked . | . . . . Hacks Repelled . | . . . . Allies | -11 -10 -10 -10 -------- Run | Yrd Mat Min Sub Total Allies 3 | . . 3 . Largest Group 3 | . . 3 2 Highest-Rated Group 40 | . . 40 23 Highest-Rated Ally 16 | . . 16 16 Total Orders . | . . . . Ally Attacks 21 | . . 14 7 Total Damage 195 | . . 129 66 Kills 4 | . . 3 1 Allies Corrupted . | . . . . Allies Melted . | . . . . Intel | -11 -10 -10 -10 ------- Run | Yrd Mat Min Sub Robot Analysis Total . | . . . . Derelict Logs Recovered 3 | . . 3 . Drone Launches . | . . . . Drone Recoveries . | . . . . Exploration | -11 -10 -10 -10 ------------- Run | Yrd Mat Min Sub Turns Passed 4047 | 116 2420 1277 234 Spaces Moved 2092 | 67 968 852 205 Core 5 | 5 . . . Treads 1178 | 62 968 148 . Legs . | . . . . Wheels 909 | . . 704 205 Hover . | . . . . Flight . | . . . . Fastest Speed 50 | 50 160 110 110 Average Speed 169 | 151 215 132 110 Slowest Speed 320 | 160 240 320 110 Overloaded Moves . | . . . . Propulsion Burnouts . | . . . . Robots Hopped . | . . . . Cave-ins Triggered . | . . . . Exploration Rate (%) 52 | 4 89 99 18 Regions Visited 3 Branch Regions 2 Pre-discovered Areas 2 | . . 2 . Known Exits Taken 2 | . 1 1 . Unknown Exits Taken 1 | 1 . . . Scrap Searched 2 | . . 2 . Spaces Dug . | . . . . Terrain Destroyed . | . . . . Melee . | . . . . Projectile . | . . . . AOE . | . . . . Terrain Rammed . | . . . . Walls Destroyed . | . . . . Machines Disabled . | . . . . Actions | -11 -10 -10 -10 --------- Run | Yrd Mat Min Sub Total 2372 | 78 1155 925 214 Wait 122 | 4 81 28 9 Move 2089 | 66 967 851 205 Hop . | . . . . Pick Up 21 | . 18 3 . Fast Attach 17 | 7 7 3 . Attach 4 | . 3 1 . Detach . | . . . . Swap 2 | . . 2 . Drop 8 | 1 5 2 . Fire 108 | . 73 35 . Melee . | . . . . Ram . | . . . . Kick . | . . . . Crush 1 | . 1 . . Escape Stasis . | . . . . Rewire . | . . . . Trap . | . . . . Miscellaneous . | . . . . Route ------- -11/Scrapyard -10/Materials (discovered 5 exits: *Mat x2 / *Min x2 / *Sub) -10/Mines (discovered 3 exits: *Mat x2 / *Sub) -10/Subcaves History --------- Turn | Location | Event 5 | -11/Scrapyard | Discovered new exit (range 16) 117 | -11/Scrapyard | Entered Materials 255 | -10/Materials | Discovered new exit (range 8) 332 | -10/Materials | Build established: Mutant 525 | -10/Materials | Discovered new exit (range 14) 623 | -10/Materials | Discovered new exit (range 16) 1672 | -10/Materials | Discovered new exit (range 10) 2016 | -10/Materials | Repaired Lgt. Cannon 2151 | -10/Materials | Discovered new exit (range 11) 2461 | -10/Materials | Core integrity fell below 50% 2535 | -10/Materials | Identified exit to Mines 2537 | -10/Materials | Entered Mines 2538 | -10/Mines | Assembled infested the area 2543 | -10/Mines | Assisted by a Guerilla fighting off Assembled 2773 | -10/Mines | Found a damaged Exp. Sensor Array with a note attached 2778 | -10/Mines | Found Prototype Device 2866 | -10/Mines | Learned location of Storage (-9) 2925 | -10/Mines | Core integrity fell below 20% 3040 | -10/Mines | Assisted by bots powering up and referring to "LRC-V3" 3099 | -10/Mines | Learned Materials stockpile data 3298 | -10/Mines | Discovered new exit (range 7) 3358 | -10/Mines | Discovered new exit (range 5) 3366 | -10/Mines | Identified exit to Materials 3788 | -10/Mines | Learned location of Zion (-7) 3802 | -10/Mines | Discovered new exit (range 10) 3813 | -10/Mines | Identified exit to Subcaves 3814 | -10/Mines | Entered Subcaves 3814 | -10/Subcaves | Accompanied by 2 allies 3854 | -10/Subcaves | Disturbed a concealed Subdweller 3988 | -10/Subcaves | A swath of the cavern ceiling suddenly collapsed 4048 | -10/Subcaves | Destroyed by G-47 Trooper with Particle Gun Last Messages --------------- K-01 Serf collects debris. EXIT=FOUND U-05 Engineer lays Concrete. U-05 Engineer builds a Wall. EXIT=IDENTIFIED: SUBCAVES [Achievement: I Survived The Infestation] LOCATION=SUBCAVES AMBIENT_HEAT=-10 GOAL=ESCAPE System corrupted: Component data lost. 0W-4Y2(R) angrily emerges from the Twisted Machinery. Lgt. Cannon destroyed. System corrupted: Component data lost. System corrupted: Energy discharge (-37). OHN6O :DBOQB&VDGX1K,DX Subatomizers dissect the Lgt. Ion Engine. Mercenary 1a crushed by falling debris. Trooper 1b crushed by falling debris. A swath of the cavern ceiling suddenly collapses. System corrupted: Heat flow error (+155). Map ----- +----------------------------------------------------+ | | | ?????????????????????????????????????????????????? | | ?????????????????????????????????????????????????? | | ?????????????????????????????????????????????????? | | ?????????????????????????????????????????????????? | | ?????????????????????????????????????????????????? | | ?????????????????????????????????????????????????? | | ?????????????????????????????????????????????????? | | ?????????????????????????????????????????????????? | | ?????????????????????????????????????????????????? | | ?????????????????????????????????????????????????? | | ?????????????????????????????????????????????????? | | ?????????????????????????????????????????????????? | | ?????????????????????????????????????????????????? | | ?????????????????????????????????????????????????? | | ?????????????????????????????????????????????????? | | ?????????????????????????????????????????????????? | | ?????????????????????????????????????????????????? | | ?????????????????????????????????????????????????? | | ????????????#####???##???????????????????????????? | | ????????????# ### ???????????????????????????? | | ??????????? ?###??????????????????????? | | ???????????? " ## #??????????????????????? | | ????????????#" g ??????????????????????? | | ???????????????# g ###????????????????????? | | ?????????????????????# @# ###??????????????????? | | ?????????????????????#### ##?????????????????? | | ????????????????????????# # #?????????????????? | | ???????????????????????## ## ##?????????????????? | | ???????????????????????#g ## #?????????????????? | | ???????????????????????## ##?????????????????? | | ???????????????????????##g# #?????????????????? | | ???????????????????????# ##?????????????????? | | ???????????????????????### ##?????????????????? | | ?????????????????????????### #?????????????????? | | ???????????????????????????# ##?????????????????? | | ??????????????????????????## #?????????????????? | | ??????????????????????????# #?????????????????? | | ??????????????????????????## ##?????????????????? | | ??????????????????????##### ##?????????????????? | | ????????????????###??## #?????????????????? | | ????????#####??## ##?# #?????????????????? | | ######### #### #### ##?????????????????? | | # # # ## ### #??????????????????? | | ## ## ###????????????????? | | ### ##???????????????? | | ##"## ## #???????????????? | | # ## " ### #???????????????? | | ##" "## #### #####???????????????? | | ##"#### ### *#?## ##??????????????????? | +----------------------------------------------------+ Best States ------------- Heat Dissipation 25 Energy Generation 10 Energy Capacity 125 Matter Stores 300 Matter Capacity 300 Sight Range 16 Robot Scan Range 14 Terrain Scan Density 10 Evasion (%) 40 Recoil Reduction 2 Item Schematics ----------------- Lgt. Treads | -10/Materials | Hacked Robot Schematics ------------------ None Fabricated ------------ Nothing Alien Tech Used ----------------- None Achievements -------------- I Survived The Infestation Challenges ------------ None Game ------ Seed FissionCorruptionShield Manual? 0 Play Time 00:24:24 Cumulative 23.5 hours Start 2024.06.01 @ 03:45:38 End 2024.06.01 @ 04:09:50 Sessions 1 Manual Loads 0 Difficulty Rogue Special Mode None Game No. 9 Rogue 9 Adventurer 0 Explorer 0 Win Type - Total 0 Types 0/0/0/0/0/0/0/0/0 Lore% 16 Gallery% 23 Achievement% 22 Wizard Run 0 Options --------- Layout 0 ASCII 0 Keyboard 0 Movement Mouse Keybinds 0 Fullscreen 1 Font 18/SmallcapsGlow Map View 76x50 Zoom Use 0% Tactical HUD 0 Map Filters NONE Filters NONE Steam 1 RUN: 6a690d89-1f8b-4ab9-9d73-d8d8bb70d82a